bitfinex/quotes_BTCUSD_20250901
["timestamp","ask_amount","ask_price","bid_price","bid_amount"]
[1756732594609,0.5053479,109340.0,109330.0,0.0072]
[1756732595041,0.5053479,109340.0,109330.0,0.002]
[1756732595248,0.5053479,109340.0,109330.0,0.0072]
[1756732595475,0.5079279,109340.0,109330.0,0.15676]
[1756732596530,0.5053479,109340.0,109330.0,0.15676]
[1756732596986,0.5053479,109340.0,109330.0,0.003]
[1756732596987,0.93984389,109340.0,109330.0,0.003]
[1756732597208,1.09460389,109340.0,109330.0,0.003]
[1756732597917,1.11554271,109340.0,109330.0,0.003]
[1756732599278,0.79509048,109340.0,109330.0,0.003]
[1756732599488,1.13319834,109340.0,109330.0,0.003]
[1756732600754,1.13319834,109340.0,109330.0,0.002]
[1756732601174,0.18294914,109320.0,109310.0,0.15796]
[1756732601370,0.521057,109320.0,109310.0,0.33772587]
[1756732601595,0.18294914,109320.0,109310.0,0.33972587]
[1756732602059,0.18294914,109320.0,109310.0,0.34292587]
[1756732602274,0.18294914,109320.0,109310.0,0.34297298]
[1756732602482,0.521057,109320.0,109310.0,0.00524711]
[1756732602678,0.521057,109320.0,109310.0,0.34297298]
[1756732602894,0.18294914,109320.0,109310.0,0.34497298]
[1756732604197,0.18492914,109320.0,109310.0,0.16200711]
[1756732604407,0.523037,109320.0,109310.0,0.16300711]
[1756732604819,0.53265178,109320.0,109310.0,0.00824711]
[1756732605029,0.53265178,109320.0,109310.0,0.16300711]
[1756732605236,0.53265178,109320.0,109310.0,0.15780711]
[1756732605675,0.53265178,109320.0,109310.0,0.16100711]
[1756732606095,0.53265178,109320.0,109310.0,0.16300711]
[1756732607239,0.53067178,109320.0,109310.0,0.16300711]
[1756732607675,0.18294914,109320.0,109310.0,0.34826005]
[1756732607890,0.20182712,109340.0,109320.0,0.18294914]
[1756732608106,0.19268134,109340.0,109330.0,0.33997905]
[1756732608316,0.5307892,109340.0,109330.0,0.15996]
[1756732608497,0.5327692,109340.0,109330.0,0.15476]
[1756732608740,0.1829324,109330.0,109320.0,0.0032]
[1756732608950,0.18294914,109320.0,109310.0,0.00324711]
[1756732609164,0.521057,109320.0,109310.0,0.15800711]
[1756732609374,0.521057,109320.0,109310.0,0.16000711]
[1756732609797,0.523047,109320.0,109310.0,0.15480711]
[1756732610213,0.523047,109320.0,109310.0,0.15680711]
[1756732610387,0.523047,109320.0,109310.0,0.16000711]
[1756732611995,0.523047,109320.0,109310.0,0.16100711]
[1756732612189,0.521057,109320.0,109310.0,0.16100711]
[1756732612534,0.521057,109320.0,109310.0,0.16200711]
[1756732613786,0.523047,109320.0,109310.0,0.16200711]
[1756732614633,0.521057,109320.0,109310.0,0.16200711]
[1756732620143,0.18294914,109320.0,109310.0,0.34497298]
[1756732620347,0.5504234,109330.0,109310.0,0.34497298]
[1756732620569,0.5229324,109330.0,109320.0,0.0032]
[1756732620774,0.5229324,109330.0,109320.0,0.18814914]
[1756732621190,0.1829324,109330.0,109320.0,0.0052]
[1756732621404,0.52302026,109330.0,109320.0,0.15996]
[1756732622072,0.1849124,109330.0,109320.0,0.15996]
[1756732622278,0.1829324,109330.0,109320.0,0.15996]
[1756732622492,0.52104026,109330.0,109320.0,0.15996]
[1756732622959,0.52204026,109330.0,109320.0,0.15996]
[1756732623160,0.52104026,109330.0,109320.0,0.15996]
[1756732623612,0.52204026,109330.0,109320.0,0.15996]
[1756732623814,0.1839324,109330.0,109320.0,0.15996]
[1756732624022,0.52402026,109330.0,109320.0,0.15996]
[1756732624207,0.52402026,109330.0,109320.0,0.15676]
[1756732624395,0.52402026,109330.0,109320.0,0.15996]
[1756732625759,0.1839324,109330.0,109320.0,0.15996]
[1756732625963,0.52204026,109330.0,109320.0,0.15996]
[1756732626972,0.52204026,109330.0,109320.0,0.34290914]
[1756732627191,0.52204026,109330.0,109320.0,0.15996]
[1756732628014,0.52104026,109330.0,109320.0,0.15996]
[1756732628225,0.18294914,109320.0,109310.0,0.18300892]
[1756732628452,0.18294914,109320.0,109310.0,0.34097892]
[1756732628662,0.1829324,109330.0,109310.0,0.34303892]
[1756732628873,0.18294914,109320.0,109310.0,0.34303892]
[1756732630435,0.18294914,109320.0,109310.0,0.34503892]
[1756732631223,0.52104026,109330.0,109310.0,0.34503892]
[1756732631426,0.18294914,109320.0,109310.0,0.34503892]
[1756732631769,0.18294914,109320.0,109310.0,0.34703892]
[1756732632228,0.18294914,109320.0,109310.0,0.34503892]
[1756732632637,0.18294914,109320.0,109310.0,0.34603892]
[1756732633240,0.18294914,109320.0,109310.0,0.19027892]
[1756732633241,0.18493914,109320.0,109310.0,0.19027892]
[1756732633450,1.01848486,109320.0,109310.0,0.00204711]
[1756732633652,1.47789385,109320.0,109310.0,0.00204711]
[1756732633855,1.49883267,109320.0,109310.0,0.00204711]
[1756732634071,1.54883267,109320.0,109310.0,0.00204711]
[1756732634245,1.54883267,109320.0,109310.0,4.711e-05]
[1756732634626,1.54883267,109320.0,109310.0,0.00104711]
[1756732634883,1.54883267,109320.0,109310.0,0.00304711]
[1756732635064,1.54883267,109320.0,109310.0,0.00204711]
[1756732635263,1.54883267,109320.0,109310.0,4.711e-05]
[1756732635673,1.54983267,109320.0,109310.0,4.711e-05]
[1756732635876,1.62015267,109320.0,109310.0,4.711e-05]
[1756732636258,1.71206866,109320.0,109310.0,4.711e-05]
[1756732636671,1.62215267,109320.0,109310.0,4.711e-05]
[1756732637045,1.46739267,109320.0,109310.0,4.711e-05]
[1756732637253,1.62215267,109320.0,109310.0,4.711e-05]
[1756732642444,1.96026053,109320.0,109310.0,4.711e-05]
[1756732642599,2.01026053,109320.0,109310.0,1e-08]
[1756732642810,2.10217652,109320.0,109310.0,1e-08]
[1756732643459,2.10017652,109320.0,109310.0,1e-08]
[1756732643611,2.09917652,109320.0,109310.0,1e-08]
[1756732643798,2.10317652,109320.0,109310.0,1e-08]
[1756732644001,2.10617652,109320.0,109310.0,1e-08]
[1756732644215,2.15217652,109320.0,109310.0,1e-08]
[1756732644853,2.15717652,109320.0,109310.0,1e-08]
[1756732645270,2.00241652,109320.0,109310.0,1e-08]
[1756732645473,2.15417652,109320.0,109310.0,1e-08]
[1756732646175,2.00341652,109320.0,109310.0,1e-08]
[1756732646387,2.15817652,109320.0,109310.0,1e-08]
[1756732647020,2.15417652,109320.0,109310.0,1e-08]
[1756732647245,2.15817652,109320.0,109310.0,1e-08]
[1756732647477,2.15317652,109320.0,109310.0,1e-08]
[1756732647938,2.15621599,109320.0,109310.0,1e-08]
[1756732648364,0.5230161,109280.0,109270.0,0.07675631]
[1756732648586,1.17815995,109280.0,109270.0,0.07363257]
[1756732648817,1.18015995,109280.0,109270.0,0.07363257]
[1756732649038,1.20766795,109280.0,109270.0,0.07363257]
[1756732649265,1.20766795,109280.0,109270.0,8.626e-05]
[1756732649969,1.20766795,109280.0,109270.0,0.00208626]
[1756732650721,1.29958394,109280.0,109270.0,0.00208626]
[1756732651045,1.20766795,109280.0,109270.0,0.00208626]
[1756732651255,1.21023795,109280.0,109270.0,0.00308626]
[1756732651634,1.56928463,109280.0,109270.0,0.00308626]
[1756732652274,1.56928463,109280.0,109270.0,0.00208626]
[1756732652531,1.57906607,109280.0,109270.0,8.626e-05]
[1756732652772,1.67198206,109280.0,109270.0,8.626e-05]
[1756732653394,1.22020414,109260.0,109250.0,0.00321]
[1756732653600,1.46692013,109260.0,109250.0,0.00325704]
[1756732653794,1.46692013,109260.0,109250.0,0.00531704]
[1756732653996,1.49443213,109260.0,109250.0,0.00531704]
[1756732654426,1.49643213,109260.0,109250.0,0.00531704]
[1756732654562,1.41199213,109260.0,109250.0,0.00531704]
[1756732654767,1.56679213,109260.0,109250.0,0.00531704]
[1756732655188,1.56679213,109260.0,109250.0,0.00631704]
[1756732655993,1.56679213,109260.0,109250.0,0.00731704]
[1756732656616,1.56479213,109260.0,109250.0,0.00731704]
[1756732657457,1.40999213,109260.0,109250.0,0.00731704]
[1756732657868,1.22668427,109260.0,109250.0,0.00731704]
[1756732658515,1.33963213,109260.0,109250.0,0.00731704]
[1756732658769,0.98058545,109260.0,109250.0,0.00731704]
[1756732658992,1.13538545,109260.0,109250.0,0.00731704]
[1756732659864,1.47349331,109260.0,109250.0,0.00731704]
[1756732660348,0.79727759,109260.0,109250.0,0.00731704]
[1756732660563,0.98058545,109260.0,109250.0,0.00731704]
[1756732660776,0.70300257,109260.0,109250.0,0.00731704]
[1756732661426,1.04111043,109260.0,109250.0,0.00731704]
[1756732662748,1.49594524,109260.0,109250.0,0.00731704]
[1756732663190,1.49594524,109260.0,109250.0,0.00204704]
[1756732663416,1.59044123,109260.0,109250.0,0.00204704]
[1756732663658,1.49852524,109260.0,109250.0,0.00204704]
[1756732664564,1.49852524,109260.0,109250.0,0.00104704]
[1756732665018,0.81778952,109260.0,109250.0,0.00617704]
[1756732665274,1.15589738,109260.0,109250.0,0.00617704]
[1756732665518,1.15788738,109260.0,109250.0,0.00617704]
[1756732665735,1.52456838,109260.0,109250.0,4.704e-05]
[1756732665964,1.49599524,109260.0,109250.0,4.704e-05]
[1756732666188,1.49599524,109260.0,109250.0,0.00517704]
[1756732666426,1.49599524,109260.0,109250.0,0.00209704]
[1756732666652,1.49599524,109260.0,109250.0,4.704e-05]
[1756732666875,0.81977952,109260.0,109250.0,0.00517704]
[1756732667089,1.00101738,109260.0,109250.0,0.00517704]
[1756732667328,1.15593738,109260.0,109250.0,0.00517704]
[1756732668005,1.15791738,109260.0,109250.0,0.00209704]
[1756732668218,1.15791738,109260.0,109250.0,4.704e-05]
[1756732668426,1.49602524,109260.0,109250.0,4.704e-05]
[1756732669286,1.49610524,109260.0,109250.0,4.704e-05]
[1756732669723,1.49606524,109260.0,109250.0,4.704e-05]
[1756732670376,0.66290952,109260.0,109250.0,0.00517704]
[1756732670631,1.15597738,109260.0,109250.0,0.00517704]
[1756732671293,1.00101738,109260.0,109250.0,0.00517704]
[1756732671499,1.15597738,109260.0,109250.0,0.00517704]
[1756732672731,0.6419707,109260.0,109250.0,0.00517704]
[1756732672962,0.7968907,109260.0,109250.0,0.00517704]
[1756732673405,1.13499856,109260.0,109250.0,0.00517704]
[1756732674092,1.13503856,109260.0,109250.0,0.00617704]
[1756732675178,1.13503856,109260.0,109250.0,0.00717704]
[1756732677100,0.6419707,109260.0,109250.0,0.1902434]
[1756732677326,0.52254271,109260.0,109250.0,0.00717704]
[1756732677545,0.18254271,109260.0,109250.0,0.1902434]
[1756732678232,0.68081692,109270.0,109250.0,0.1902434]
[1756732678446,1.02081692,109270.0,109260.0,0.00308]
[1756732678665,0.18782906,109270.0,109260.0,0.1881796]
[1756732679288,0.18304801,109270.0,109260.0,0.1881796]
[1756732679716,0.1921669,109280.0,109270.0,0.18303285]
[1756732679936,0.1921669,109280.0,109270.0,0.00205]
[1756732680142,0.54189198,109280.0,109270.0,0.00513]
[1756732680361,0.5321669,109280.0,109270.0,0.18816285]
[1756732680585,0.1830161,109280.0,109270.0,0.18816285]
[1756732681023,0.34267545,109290.0,109270.0,0.18816285]
[1756732681214,0.5230144,109290.0,109270.0,0.18508285]
[1756732681435,0.1830161,109280.0,109270.0,0.18737076]
[1756732681663,0.1830161,109280.0,109270.0,0.00205]
[1756732681930,0.1830161,109280.0,109270.0,0.00513]
[1756732682406,0.1830161,109280.0,109270.0,0.18816285]
[1756732682625,0.1830161,109280.0,109270.0,0.00513]
[1756732682833,0.1830161,109280.0,109270.0,0.19116285]
[1756732683258,0.1830161,109280.0,109270.0,0.18916285]
[1756732683470,0.1830161,109280.0,109270.0,0.19116285]
[1756732683673,0.1830161,109280.0,109270.0,0.19316285]
[1756732683874,0.1830161,109280.0,109270.0,0.01013]
[1756732684758,0.1830161,109280.0,109270.0,0.19316285]
[1756732684956,0.86112226,109290.0,109270.0,0.19316285]
[1756732685162,0.5230144,109290.0,109270.0,0.19008285]
[1756732685386,0.5230144,109290.0,109280.0,0.00298]
[1756732685604,0.78300874,109300.0,109280.0,0.1881361]
[1756732685605,0.56728267,109300.0,109280.0,0.1881361]
[1756732685811,0.56728267,109300.0,109290.0,0.00298]
[1756732685812,0.35659481,109300.0,109290.0,0.00298]
[1756732686040,0.68708088,109300.0,109290.0,0.00512]
[1756732686250,0.53216088,109300.0,109290.0,0.00512]
[1756732687278,0.53216088,109300.0,109290.0,0.00612]
[1756732688295,0.53216088,109300.0,109290.0,0.18911935]
[1756732688296,0.18298261,109300.0,109290.0,0.18911935]
[1756732688701,0.18298261,109300.0,109290.0,0.00612]
[1756732688903,0.52307047,109300.0,109290.0,0.00612]
[1756732689102,0.52307047,109300.0,109290.0,0.00314]
[1756732689311,0.18496261,109300.0,109290.0,0.00314]
[1756732689539,0.18298261,109300.0,109290.0,0.00612]
[1756732689736,0.18496261,109300.0,109290.0,0.00612]
[1756732690505,0.18298261,109300.0,109290.0,0.00612]
[1756732690777,0.61499646,109300.0,109290.0,0.001]
[1756732690960,0.95757646,109300.0,109290.0,0.001]
[1756732691981,0.34,109300.0,109290.0,0.00612]
[1756732692187,0.18300664,109310.0,109290.0,0.68218721]
[1756732692411,0.18298261,109300.0,109290.0,0.1581]
[1756732692618,0.18298261,109300.0,109290.0,0.34109935]
[1756732692823,0.18305372,109310.0,109290.0,0.67920721]
[1756732693029,0.18305372,109310.0,109300.0,0.18596261]
[1756732693230,0.18305372,109310.0,109300.0,0.00298]
[1756732693429,0.18305372,109310.0,109300.0,0.00512]
[1756732693763,0.18305372,109310.0,109300.0,0.18810261]
[1756732694585,0.18301295,109310.0,109300.0,0.18810261]
[1756732694865,4.708e-05,109310.0,109300.0,0.19310261]
[1756732695079,4.708e-05,109310.0,109300.0,0.53121047]
[1756732695229,4.708e-05,109310.0,109300.0,0.60157047]
[1756732695439,4.708e-05,109310.0,109300.0,0.26346261]
[1756732695642,4.708e-05,109310.0,109300.0,0.26549961]
[1756732700802,4.708e-05,109310.0,109300.0,0.60360747]
[1756732701050,4.708e-05,109310.0,109300.0,0.69552346]
[1756732703148,0.18293278,109330.0,109320.0,0.18293852]
[1756732703523,0.18495988,109330.0,109320.0,0.15476]
[1756732703750,0.18297988,109330.0,109320.0,0.15988]
[1756732703931,0.18496988,109330.0,109320.0,0.15988]
[1756732704579,0.18496988,109330.0,109320.0,0.00512]
[1756732704768,0.18294914,109320.0,109310.0,0.18594587]
[1756732705035,0.18493914,109320.0,109310.0,0.15988]
[1756732705245,0.18493914,109320.0,109310.0,0.34284587]
[1756732705426,0.18493914,109320.0,109300.0,0.26750874]
[1756732705427,0.18296587,109310.0,109300.0,0.26750874]
[1756732705658,0.18296587,109310.0,109300.0,0.41525961]
[1756732705838,0.521057,109320.0,109300.0,0.41525961]
[1756732706717,0.18294914,109320.0,109300.0,0.41525961]
[1756732706896,0.18296587,109310.0,109300.0,0.41227961]
[1756732707221,0.18496587,109310.0,109300.0,0.26049961]
[1756732707510,0.18496587,109310.0,109300.0,0.41525961]
[1756732708162,0.002,109310.0,109300.0,0.41525961]
[1756732708408,0.15099242,109330.0,109310.0,0.18296587]
[1756732708629,0.49297242,109330.0,109320.0,0.15988]
[1756732708815,0.1418458,109330.0,109320.0,0.34282914]
[1756732709061,0.1829795,109330.0,109320.0,0.34282914]
[1756732710332,4.71e-05,109330.0,109320.0,0.680937]
[1756732710548,4.71e-05,109330.0,109320.0,0.34282914]
[1756732710754,4.71e-05,109330.0,109320.0,0.84317299]
[1756732710974,4.71e-05,109330.0,109320.0,1.18128085]
[1756732711625,4.71e-05,109330.0,109320.0,1.18228085]
[1756732712298,4.71e-05,109330.0,109320.0,1.19093661]
[1756732712516,4.71e-05,109330.0,109320.0,1.19493661]
[1756732712733,4.71e-05,109330.0,109320.0,1.20093661]
[1756732712944,4.71e-05,109330.0,109320.0,0.70206875]
[1756732713162,4.71e-05,109330.0,109320.0,1.19497661]
[1756732713375,4.71e-05,109330.0,109320.0,1.76291543]
[1756732713833,0.0002,109370.0,109360.0,0.52099008]
[1756732714050,0.0006711,109370.0,109360.0,0.85348681]
[1756732714262,0.0006711,109370.0,109360.0,0.85646681]
[1756732715356,0.1835366,109370.0,109360.0,0.85746681]
[1756732715558,0.0006711,109370.0,109360.0,0.85846681]
[1756732715775,0.1835366,109370.0,109360.0,0.70270681]
[1756732715974,0.0006711,109370.0,109360.0,0.50595821]
[1756732716216,0.0006711,109370.0,109360.0,0.85742681]
[1756732716666,0.0006711,109370.0,109360.0,0.70270681]
[1756732716881,0.1835366,109370.0,109360.0,0.70270681]
[1756732717098,0.1855066,109370.0,109360.0,0.50595821]
[1756732717287,0.1835366,109370.0,109360.0,0.50595821]
[1756732717526,0.1835366,109370.0,109360.0,0.50895821]
[1756732717739,0.1835366,109370.0,109360.0,0.35423821]
[1756732717926,0.1835366,109370.0,109360.0,0.50895821]
[1756732718139,0.0006711,109370.0,109360.0,0.50895821]
[1756732718349,0.0006711,109370.0,109360.0,0.86042681]
[1756732718820,0.0006711,109370.0,109360.0,0.90059114]
[1756732721370,0.0006711,109370.0,109360.0,1.79205974]
[1756732721595,0.0002,109380.0,109370.0,0.5343341]
[1756732721802,0.00032923,109380.0,109370.0,0.62930009]
[1756732722010,0.00032923,109380.0,109370.0,0.63129009]
[1756732722416,0.00032923,109380.0,109370.0,0.97129009]
[1756732722657,0.00032923,109380.0,109370.0,1.12597009]
[1756732723091,0.00032923,109380.0,109370.0,1.19690891]
[1756732723503,0.00032923,109380.0,109370.0,1.59690891]
[1756732723709,0.00032923,109380.0,109370.0,1.24944031]
[1756732723912,0.00032923,109380.0,109370.0,1.60090891]
[1756732724122,0.00032923,109380.0,109370.0,1.02382149]
[1756732724323,0.00032923,109380.0,109370.0,1.52997009]
[1756732724726,0.00032923,109380.0,109370.0,1.55090891]
[1756732724933,0.00032923,109380.0,109370.0,1.60090891]
[1756732725139,0.00032923,109380.0,109370.0,1.60390891]
[1756732726311,0.00032923,109380.0,109370.0,1.61240891]
[1756732726537,0.0002,109390.0,109380.0,0.52284878]
[1756732726871,0.0002,109390.0,109380.0,1.03956337]
[1756732727065,0.0002,109400.0,109390.0,0.53430066]
[1756732727290,0.0002,109400.0,109390.0,0.78394665]
[1756732727708,0.0002,109400.0,109390.0,0.78593665]
[1756732728581,0.0002,109410.0,109400.0,1.44669137]
[1756732728806,0.0002,109420.0,109410.0,0.18279864]
[1756732729085,0.0002,109420.0,109410.0,0.78509821]
[1756732729313,0.00228,109430.0,109420.0,0.18278194]
[1756732729543,0.00228,109430.0,109420.0,0.69644653]
[1756732729752,0.00228,109430.0,109420.0,0.70148653]
[1756732730696,0.00228,109430.0,109420.0,0.71108535]
[1756732731137,0.00228,109430.0,109420.0,0.7523018]
[1756732731626,0.00425,109430.0,109420.0,0.54083438]
[1756732731866,0.00425,109430.0,109420.0,0.54587438]
[1756732732050,0.00425,109430.0,109420.0,0.89934298]
[1756732732261,0.00228,109430.0,109420.0,0.89934298]
[1756732732467,0.00913659,109450.0,109430.0,0.18276523]
[1756732732699,0.19445871,109450.0,109440.0,0.15692435]
[1756732732899,0.19642871,109450.0,109440.0,0.15692435]
[1756732733836,0.19642871,109450.0,109440.0,0.15464]
[1756732734326,0.18274853,109440.0,109430.0,0.18276523]
[1756732734551,0.18471853,109440.0,109430.0,0.33736523]
[1756732734767,0.19386019,109460.0,109440.0,0.18274853]
[1756732734982,0.19400139,109460.0,109450.0,0.15476]
[1756732735391,0.19856139,109460.0,109450.0,0.15476]
[1756732735635,0.19856139,109460.0,109450.0,0.33749184]
[1756732735828,0.19856139,109460.0,109450.0,0.15476]
[1756732738442,0.19597139,109460.0,109450.0,0.33977598]
[1756732738701,0.19597139,109460.0,109450.0,0.15675]
[1756732738909,0.19597139,109460.0,109450.0,0.33977598]
[1756732739123,0.19597139,109460.0,109450.0,0.33749184]
[1756732739290,0.19597139,109460.0,109450.0,0.19661933]
[1756732740118,0.19597139,109460.0,109450.0,0.37935117]
[1756732740321,0.19597139,109460.0,109450.0,0.19661933]
[1756732741373,0.19597139,109460.0,109450.0,0.37935117]
[1756732741817,0.19597139,109460.0,109450.0,0.19661933]
[1756732743067,0.19597139,109460.0,109450.0,0.38439117]
[1756732743285,0.19597139,109460.0,109450.0,0.20165933]
[1756732743731,0.19597139,109460.0,109450.0,0.38439117]
[1756732744206,0.54743999,109460.0,109450.0,0.20165933]
[1756732744898,0.54743999,109460.0,109450.0,0.04185933]
[1756732745166,0.55002999,109460.0,109450.0,0.19870347]
[1756732745418,0.55002999,109460.0,109450.0,0.15456]
[1756732745657,0.54743999,109460.0,109450.0,0.15456]
[1756732745938,0.54743999,109460.0,109440.0,0.25594853]
[1756732746184,0.53420044,109450.0,109440.0,0.16215599]
[1756732746424,0.53618044,109450.0,109440.0,0.50157452]
[1756732746632,0.53618044,109450.0,109440.0,0.50453452]
[1756732747807,0.53420044,109450.0,109440.0,0.50453452]
[1756732748064,0.51975613,109450.0,109440.0,0.50453452]
[1756732749178,0.52173613,109450.0,109440.0,0.49946452]
[1756732749653,0.52173613,109450.0,109440.0,0.50157452]
[1756732750107,0.52173613,109450.0,109440.0,0.16215599]
[1756732750359,0.52173613,109450.0,109440.0,0.31671599]
[1756732751888,0.52173613,109450.0,109440.0,0.31771599]
[1756732752330,0.52173613,109450.0,109440.0,0.50257452]
[1756732752541,0.52173613,109450.0,109440.0,0.31771599]
[1756732752754,0.52173613,109450.0,109440.0,0.07024]
[1756732752966,0.52173613,109450.0,109440.0,0.2248]
[1756732753882,0.52173613,109450.0,109420.0,0.11441645]
[1756732753883,0.18276523,109430.0,109420.0,0.11441645]
[1756732754112,0.51978952,109430.0,109420.0,0.35793244]
[1756732754343,0.52177952,109430.0,109420.0,0.54578438]
[1756732754560,0.52177952,109430.0,109420.0,0.36300244]
[1756732754809,0.52177952,109430.0,109420.0,0.20844244]
[1756732755040,0.52177952,109430.0,109420.0,0.35793244]
[1756732755263,0.52177952,109430.0,109420.0,0.35993244]
[1756732755487,0.52177952,109430.0,109420.0,0.36193244]
[1756732755709,0.52435952,109430.0,109420.0,0.27001645]
[1756732755940,0.52177952,109430.0,109420.0,0.27001645]
[1756732756154,0.52177952,109430.0,109420.0,0.11545645]
[1756732756369,0.52177952,109430.0,109420.0,0.26801645]
[1756732756581,0.18475523,109430.0,109420.0,0.11345645]
[1756732756798,0.52177952,109430.0,109420.0,0.26905645]
[1756732757075,0.57177952,109430.0,109420.0,0.27116645]
[1756732757300,0.57177952,109430.0,109420.0,0.26705645]
[1756732758156,0.23475523,109430.0,109420.0,0.26605645]
[1756732758590,0.57177952,109430.0,109420.0,0.26605645]
[1756732759471,0.23475523,109430.0,109420.0,0.26605645]
[1756732759681,0.57177952,109430.0,109420.0,0.26605645]
[1756732760524,0.57177952,109430.0,109420.0,0.26601645]
[1756732761556,0.57177952,109430.0,109420.0,0.26812645]
[1756732761771,0.57177952,109430.0,109420.0,0.27108645]
[1756732762204,0.57177952,109430.0,109420.0,0.26601645]
[1756732762816,0.57435952,109430.0,109420.0,0.26601645]
[1756732763228,0.60182252,109430.0,109420.0,0.26601645]
[1756732763844,0.59924252,109430.0,109420.0,0.19577645]
[1756732765323,0.60861642,109430.0,109420.0,0.19577645]
[1756732765529,0.27159213,109430.0,109420.0,0.19577645]
[1756732765731,0.60861642,109430.0,109420.0,0.19577645]
[1756732765961,0.18278194,109420.0,109410.0,0.07024]
[1756732766166,0.51980623,109420.0,109410.0,0.2248]
[1756732766390,0.52179623,109420.0,109410.0,0.2248]
[1756732766568,0.52179623,109420.0,109410.0,0.22691]
[1756732766895,0.52179623,109420.0,109410.0,0.22987]
[1756732768271,0.52179623,109420.0,109410.0,0.27127131]
[1756732768483,0.18477194,109420.0,109410.0,0.27127131]
[1756732768707,0.52179623,109420.0,109410.0,0.27227131]
[1756732769374,0.52179623,109420.0,109410.0,0.26931131]
[1756732769909,0.52179623,109420.0,109410.0,0.11264131]
[1756732770113,0.52436623,109420.0,109410.0,0.26620131]
[1756732770540,0.52436623,109420.0,109410.0,0.15456]
[1756732770541,0.52179623,109420.0,109410.0,0.15456]
[1756732770829,0.52179623,109420.0,109410.0,0.15963]
[1756732771038,0.52179623,109420.0,109410.0,0.15456]
[1756732772896,0.18279864,109410.0,109400.0,0.04406461]
[1756732773127,0.85941722,109410.0,109400.0,0.00014122]
[1756732773322,0.88888522,109410.0,109400.0,0.15470122]
[1756732773572,1.04344522,109410.0,109400.0,0.00014122]
[1756732773981,1.38344522,109410.0,109400.0,0.00014122]
[1756732774680,1.22888522,109410.0,109400.0,0.00014122]
[1756732774891,1.38348522,109410.0,109400.0,0.00014122]
[1756732775534,1.38348522,109410.0,109400.0,0.00114122]
[1756732776133,1.22888522,109410.0,109400.0,0.00114122]
[1756732776381,1.38348522,109410.0,109400.0,0.00014122]
[1756732776795,1.38548522,109410.0,109400.0,0.00014122]
[1756732776997,1.23088522,109410.0,109400.0,0.00014122]
[1756732777176,1.38548522,109410.0,109400.0,0.00014122]
[1756732777801,1.23088522,109410.0,109400.0,0.00014122]
[1756732778011,0.70886664,109410.0,109400.0,0.00014122]
[1756732778233,1.38291522,109410.0,109400.0,0.00014122]
[1756732778464,0.0593739,109430.0,109410.0,0.18278357]
[1756732778676,0.05,109430.0,109420.0,0.84096699]
[1756732778907,0.33702429,109450.0,109430.0,0.18275486]
[1756732779120,0.33702429,109450.0,109440.0,0.34183288]
[1756732779331,0.51975613,109450.0,109440.0,0.18804853]
[1756732779828,0.52178613,109450.0,109430.0,0.43261085]
[1756732780038,0.53391836,109440.0,109420.0,0.26538103]
[1756732780265,0.35116983,109430.0,109420.0,0.51201702]
[1756732780481,0.35116983,109430.0,109420.0,0.51409702]
[1756732780701,0.53391836,109440.0,109430.0,0.18276523]
[1756732780919,0.18479523,109430.0,109420.0,0.40774194]
[1756732781136,0.18479523,109430.0,109420.0,0.25510194]
[1756732781137,0.53596506,109430.0,109420.0,0.25510194]
[1756732781356,0.53596506,109430.0,109420.0,0.40982194]
[1756732781502,0.53392079,109440.0,109430.0,0.18276523]
[1756732781726,0.53391836,109440.0,109430.0,0.19034979]
[1756732781925,0.69775826,109450.0,109430.0,0.18806523]
[1756732782137,0.18274853,109440.0,109430.0,0.18806523]
[1756732782482,0.18477853,109440.0,109430.0,0.18806523]
[1756732782684,0.18477853,109440.0,109430.0,0.18484523]
[1756732782813,0.18477853,109440.0,109430.0,0.33952523]
[1756732783586,0.53391836,109440.0,109430.0,0.34274523]
[1756732784127,0.53391836,109440.0,109430.0,0.34374523]
[1756732784338,0.53594836,109440.0,109430.0,0.34052523]
[1756732784544,0.53594836,109440.0,109430.0,0.18584523]
[1756732784752,0.53594836,109440.0,109430.0,0.15568]
[1756732785177,0.53594836,109440.0,109430.0,0.34052523]
[1756732786596,0.53594836,109440.0,109430.0,0.001]
[1756732787373,0.58594836,109440.0,109430.0,0.001]
[1756732787745,0.53594836,109440.0,109430.0,0.001]
[1756732789282,0.01226054,109460.0,109440.0,0.18274853]
[1756732789483,0.01240174,109460.0,109450.0,0.43462783]
[1756732790868,0.01340174,109460.0,109450.0,0.43462783]
[1756732791481,0.01240174,109460.0,109450.0,0.43462783]
[1756732791709,0.01240174,109460.0,109450.0,0.34271184]
[1756732793114,0.54831671,109460.0,109440.0,0.18274853]
[1756732793313,0.35116983,109450.0,109440.0,0.42938452]
[1756732793518,0.53593167,109450.0,109440.0,0.18804853]
[1756732793726,0.18274853,109440.0,109430.0,0.4233498]
[1756732793934,0.18274853,109440.0,109430.0,0.36266579]
[1756732794144,0.53594836,109440.0,109420.0,0.30587768]
[1756732794376,0.53594836,109440.0,109430.0,0.15472]
[1756732795199,0.53594836,109440.0,109430.0,0.15672]
[1756732795453,0.53594836,109440.0,109430.0,0.34478523]
[1756732795454,0.35116983,109440.0,109430.0,0.34478523]
[1756732795658,0.53391836,109440.0,109430.0,0.34478523]
[1756732796041,0.18274853,109440.0,109430.0,0.34478523]
[1756732796394,0.20425263,109460.0,109440.0,0.18274853]
[1756732796596,0.55745246,109460.0,109440.0,0.18825288]
[1756732796798,0.70092263,109460.0,109450.0,0.00208]
[1756732796998,0.34975688,109460.0,109450.0,0.18803184]
[1756732797541,0.34975688,109460.0,109450.0,0.34267184]
[1756732797964,0.01240174,109460.0,109450.0,0.34267184]
[1756732798162,0.01240174,109460.0,109450.0,0.34367184]
[1756732799133,0.19511688,109460.0,109450.0,0.34367184]
[1756732799548,0.19714688,109460.0,109450.0,0.34367184]
[1756732800145,0.01240174,109460.0,109450.0,0.34367184]
[1756732800553,0.19511688,109460.0,109450.0,0.34367184]
[1756732801704,0.54628671,109460.0,109450.0,0.34367184]
[1756732801855,0.19511688,109460.0,109450.0,0.34367184]
[1756732802254,0.01240174,109460.0,109450.0,0.34367184]
[1756732802676,0.19511688,109460.0,109450.0,0.34367184]
[1756732802928,0.01240174,109460.0,109450.0,0.34367184]
[1756732803130,0.01240174,109460.0,109450.0,0.43558783]
[1756732804121,0.00762343,109460.0,109450.0,0.50582783]
[1756732804321,0.00762343,109460.0,109450.0,0.85699766]
[1756732804525,0.00762343,109460.0,109450.0,0.50582783]
[1756732805189,0.00762343,109460.0,109450.0,0.85699766]
[1756732805810,0.00762343,109460.0,109450.0,0.89912442]
[1756732806080,0.00762343,109460.0,109450.0,0.54795459]
[1756732807385,0.00762343,109460.0,109450.0,0.54695459]
[1756732807812,0.00762343,109460.0,109450.0,0.54795459]
[1756732808574,0.00762343,109460.0,109450.0,0.90112442]
[1756732809051,0.00762343,109460.0,109450.0,0.90012442]
[1756732809985,0.00762343,109460.0,109450.0,1.24012442]
[1756732810672,0.00762343,109460.0,109450.0,1.24216442]